Cogmind - Beta 15 @@@ ROGUE MODE // 2025.05.21 @ 00:36:20 Player: Symetrie Result: Destroyed by G-47 Trooper with Particle Gun Performance ------------- Evolutions (0) 0 Regions Visited (2) 400 Robots Destroyed (20) 100 Value Destroyed (356) 356 Prototype IDs (0) 0 Alien Tech Used (0) 0 Bonus (74) 74 TOTAL SCORE: 930 Bonus ------- Follower Combat Kills 85 Friendly Fire -11 Cogmind --------- Core Integrity 0/250 Matter 277/300 Energy 125/125 System Corruption 0% Temperature Cool (9) Movement Rolling (95) Ox1 Location -10/Mines Parts ------- > --- POWER (1) -------- Light Ion Engine > --- PROPULSION (2) --- Wheel Wheel > --- UTILITY (2) ------ Improved Heat Sink Large Storage Unit > --- WEAPON (2) ------- Light Assault Rifle > --- INVENTORY (15) --- Light Ion Engine Light Ion Engine Compact Wheel Heat Sink Improved Heat Sink Small Matter Pod (50) Structural Scanner Improved Terrain Scanner Tractor Beam Small Laser Light Assault Rifle Light Assault Rifle Grenade Launcher Peak State ------------ > --- POWER ------------ Light Ion Engine > --- PROPULSION ------- Wheel Wheel > --- UTILITY ---------- Improved Heat Sink Large Storage Unit > --- WEAPON ----------- Small Laser Small Laser > --- INVENTORY -------- Light Ion Engine Compact Wheel Heat Sink Improved Heat Sink Small Matter Pod Structural Scanner Tractor Beam Light Assault Rifle Grenade Launcher Mining Laser [Rating: 10] Favorites ----------- Power Light Ion Engine Engine Light Ion Engine Propulsion Wheel Wheel Wheel Utility Large Storage Unit Device Improved Heat Sink Storage Large Storage Unit Processor Signal Interpreter Weapon Small Laser Energy Gun Small Laser Ballistic Gun Light Assault Rifle Special Weapon Mining Laser Impact Weapon Hammer Build | -11 -10 -10 ------- Run | Yrd Mat Min Slots Evolved . | . . . Power . | . . . Propulsion . | . . . Utility . | . . . Weapon . | . . . Parts Attached 23 | 6 6 11 Power 4 | 1 1 2 Engine 4 | 1 1 2 Core . | . . . Reactor . | . . . Propulsion 6 | 2 . 4 Treads . | . . . Leg . | . . . Wheel 6 | 2 . 4 Hover . | . . . Flight . | . . . Utility 4 | 1 2 1 Device 1 | . . 1 Storage 2 | 1 1 . Processor 1 | . 1 . Hackware . | . . . Protection . | . . . Artifact . | . . . Weapon 9 | 2 3 4 Energy Gun 4 | 1 2 1 Energy Cannon . | . . . Ballistic Gun 2 | 1 . 1 Ballistic Cannon . | . . . Launcher . | . . . Special Weapon 2 | . . 2 Impact Weapon 1 | . 1 . Slashing Weapon . | . . . Piercing Weapon . | . . . Special Melee Weapon . | . . . Unidentified Prototypes . | . . . Parts Lost 12 | . 5 7 Power 3 | . 2 1 Propulsion 3 | . 1 2 Utility . | . . . Weapon 6 | . 2 4 Highest Loss Streak 5 | . 5 3 To Critical Strikes . | . . . Average Backups 6 | . 3 8 Power . | . . . Propulsion . | . . . Utility 3 | . . 4 Weapon 2 | . 2 2 Tool/Special . | . . . Unused Backups 12 | . 2 10 Power 2 | . . 2 Propulsion 1 | . 1 . Utility 5 | . . 5 Weapon 4 | . 1 3 Tool/Special . | . . . Average Slot Usage (%) 89 | . 93 89 Engine 11 | . 13 10 Wheel 24 | . 27 23 Device 8 | . . 10 Storage 17 | . 17 17 Processor 1 | . 6 . Energy Gun 14 | . 20 13 Ballistic Gun 8 | . 5 9 Special Weapon 2 | . . 2 Peak Build Rating 10 | 6 7 10 Average Rating 7 | 4 6 8 On Entrance 3 | . 6 3 Naked Turns . | . . . Heaviest Build 28 | 6 28 26 Greatest Support 26 | 20 20 26 Greatest Overweight (x) 7 | . 2 7 Average Overweight (x) . | . . 1 Largest Inventory Capacity 15 | 5 15 15 Average Capacity 12 | 5 7 15 Most Carried 13 | 2 5 13 Average Carried 6 | . 3 8 Final Capacity 15 | 5 15 15 Final Carried 13 | 2 3 13 Class Distribution -------------------- 58% | Scavenger-Mutant 41% | Mutant Dominant Class ---------------- Mutant | -10/Materials Scavenger-Mutant | -10/Mines Resources | -11 -10 -10 ----------- Run | Yrd Mat Min Matter Collected 532 | 314 22 196 Remotely . | . . . Salvage Created 586 | 49 97 440 Parts 39 | 4 10 25 Haulers Intercepted . | . . . Recyclers Shooed . | . . . Parts Field Recycled . | . . . Retrieved Matter . | . . . Parts Self-Destructed . | . . . Prevented . | . . . Kills | -11 -10 -10 ------- Run | Yrd Mat Min Combat Hostiles Destroyed 11 | 1 3 7 Guns 9 | 1 2 6 Cannons 1 | . . 1 Classes Destroyed 7 | 2 2 3 Worker 2 | 1 . 1 Builder 1 | . . 1 Tunneler 3 | . . 3 Recycler 2 | . . 2 Operator 1 | . 1 . Swarmer 5 | . 2 3 Grunt 6 | 1 1 4 Best Kill Streak 3 | 1 3 3 Combat Bots Only 3 | 1 2 3 Max Kills in Single Turn 1 | 1 1 1 Gunslinging . | . . . Exploded . | . . . Melee . | . . . Uniques/NPCs Destroyed . | . . . Combat | -11 -10 -10 -------- Run | Yrd Mat Min Hostile Shots Fired 117 | 1 42 74 Missed 29 | 1 10 18 Hits 88 | . 32 56 Projectile 88 | . 32 56 Critical Strikes 2 | . . 2 Damage Taken 1026 | 1 362 663 Core 252 | 1 38 213 Absorbed by Shields . | . . . Core Remaining (%) 99 | 99 . . Volleys Fired 81 | 4 12 65 Largest 2 | 2 2 2 Hottest 140 | 60 80 140 Shots Fired 150 | 8 22 120 Gun 144 | 8 22 114 Cannon . | . . . Launcher . | . . . Special 6 | . . 6 Kinetic 54 | 4 . 50 Thermal 74 | 4 . 70 Explosive . | . . . Electromagnetic 22 | . 22 . Robot Hit Streak 9 | 3 9 6 Robot Miss Streak 7 | 2 3 7 Penetration Max . | . . . Secondary Targets 3 | . 3 . Max Gunslinging Chain 1 | . 1 . Shots Hit Robots 85 | 5 12 68 Core Hits 32 | 3 4 25 Critical Kills . | . . . Critical Parts Destroyed . | . . . Critical Strikes . | . . . Melee Attacks . | . . . Impact . | . . . Slashing . | . . . Piercing . | . . . Sneak Attacks . | . . . Combat Hostiles . | . . . Follow-up Attacks . | . . . Damage Inflicted 989 | 51 196 742 Guns 852 | 49 157 646 Cannons . | . . . Explosions 39 | . 39 . Melee . | . . . Ramming 2 | 2 . . Kinetic 232 | 15 . 217 Thermal 598 | 34 39 525 Explosive . | . . . Electromagnetic 157 | . 157 . Impact . | . . . Slashing . | . . . Piercing . | . . . Highest Corruption . | . . . Average Corruption . | . . . Corruption Purged . | . . . Corruption Blocked . | . . . Overload Shots . | . . . Overflow Damage . | . . . Projectiles . | . . . Explosions . | . . . Melee . | . . . Knockbacks . | . . . Impact . | . . . Kinetic . | . . . Secondary . | . . . Self-Inflicted Damage 1 | 1 . . Shots . | . . . Rammed 1 | 1 . . Targets Rammed 1 | 1 . . Kicked . | . . . Crushed . | . . . Highest Temperature 108 | 40 108 29 Average Temperature 23 | 20 42 9 Received Heat Transfer 444 | . 144 300 Siege Activations . | . . . Martial Activations . | . . . Shielding Activations . | . . . Robots Disrupted . | . . . Combat Hostiles . | . . . Robots Corrupted 1 | . 1 . Combat Hostiles 1 | . 1 . Parts Fried . | . . . Impact Corruptions . | . . . Robots Melted . | . . . Combat Hostiles . | . . . Parts Melted 2 | . . 2 Heat Transferred 1300 | 75 50 1175 Parts Sabotaged . | . . . Parts Stolen . | . . . Parts Stripped . | . . . Power Chain Reactions 1 | . 1 . Alert | -11 -10 -10 ------- Run | Yrd Mat Min Maximum Alert Level . | . . . Low Security (%) 100 | 100 100 100 Level 1 . | . . . Level 2 . | . . . Level 3 . | . . . Level 4 . | . . . Level 5 . | . . . High Security . | . . . Max Security . | . . . Peak Influence 67 | 20 67 53 Initial 6 | . 6 6 Average 14 | 2 10 16 Influence Increases 459 | 25 107 327 Destroy 0b10 Robot/C 280 | 20 60 200 Destroy 0b10 Robot/NC 45 | 5 5 35 Destroy Leader 50 | . 10 40 Allied During Kill 6 | . . 6 Disable Machine 30 | . 30 . Destroy Structure 3 | . 2 1 Lose Combat Pursuer 45 | . . 45 Influence Decreases 449 | 15 100 334 Entered New Map 15 | . 4 11 Time Decay 342 | 15 46 281 Lost Part 92 | . 50 42 Squads Dispatched . | . . . Investigation . | . . . Extermination . | . . . Reinforcement . | . . . Assault . | . . . Garrison . | . . . Intercept . | . . . Searches Triggered . | . . . Construction Impeded . | . . . Haulers Reinforced . | . . . Active Scanning Responses . | . . . Cargo Convoy Interrupts . | . . . Stealth | -11 -10 -10 --------- Run | Yrd Mat Min Distress Signals 1 | . 1 . Communications Jammed . | . . . Distress Signals . | . . . Times Spotted 23 | 1 9 13 Peak Tracking Total 5 | 1 5 3 Tactical Retreats 2 | . . 2 Traps | -11 -10 -10 ------- Run | Yrd Mat Min Traps Triggered . | . . . Indirectly . | . . . Trap Hack Attempts . | . . . Triggered . | . . . Disarmed . | . . . Reprogrammed . | . . . Reused . | . . . Traps Extracted . | . . . Installed . | . . . Triggered . | . . . Machines | -11 -10 -10 ---------- Run | Yrd Mat Min Machines Disabled 2 | . 2 . Max in Single Turn 1 | . 1 . Machines Repaired . | . . . Machines Dismantled . | . . . Machines Sabotaged . | . . . Overloaded Fab Kills . | . . . Hacking | -11 -10 -10 --------- Run | Yrd Mat Min Machines Accessed . | . . . Terminals . | . . . Fabricators . | . . . Repair Stations . | . . . Recycling Units . | . . . Scanalyzers . | . . . Garrison Access . | . . . Total Hacks . | . . . Successful . | . . . Failed . | . . . Catastrophic . | . . . Database Lockouts . | . . . Manual . | . . . Terminals . | . . . Fabricators . | . . . Repair Stations . | . . . Recycling Units . | . . . Scanalyzers . | . . . Garrison Access . | . . . Terminal Hacks . | . . . Fabricator Hacks . | . . . Repair Station Hacks . | . . . Recycling Unit Hacks . | . . . Scanalyzer . | . . . Garrison Access Hacks . | . . . Unauthorized Hacks . | . . . Terminals . | . . . Fabricators . | . . . Repair Stations . | . . . Recycling Units . | . . . Scanalyzers . | . . . Garrison Access . | . . . Data Cores Recovered . | . . . Used . | . . . Hacking Detections . | . . . Full Trace Events . | . . . Feedback Events . | . . . Feedback Blocked . | . . . Robot Schematics Acquired . | . . . Robots Built . | . . . Authchips . | . . . Time . | . . . Total Robot Build Rating . | . . . Part Schematics Acquired . | . . . Parts Built . | . . . Authchips . | . . . Time . | . . . Total Part Build Rating . | . . . Parts Repaired . | . . . Time . | . . . Parts Recycled . | . . . Recycled Matter . | . . . Retrieved Matter . | . . . Retrieved Components . | . . . Parts Scanalyzed . | . . . Part Schematics Acquired . | . . . Parts Damaged . | . . . Bothacking | -11 -10 -10 ------------ Run | Yrd Mat Min Used RIF Installer . | . . . Robots Hacked . | . . . Non-combat . | . . . Combat . | . . . Robot Hacks Applied . | . . . Relay Couplers Released . | . . . Fabnet Peak Effective % . | . . . Robots Rewired . | . . . Allies Hacked . | . . . Hacks Repelled . | . . . Allies | -11 -10 -10 -------- Run | Yrd Mat Min Total Allies 1 | . . 1 Largest Group 1 | . . 1 Highest-Rated Group 31 | . . 31 Highest-Rated Ally 31 | . . 31 Total Orders . | . . . Ally Attacks 18 | . . 18 Total Damage 212 | . . 212 Kills 3 | . . 3 Allies Corrupted . | . . . Allies Melted . | . . . Intel | -11 -10 -10 ------- Run | Yrd Mat Min Active Infowar (turns) . | . . . Robot Analysis Total . | . . . Derelict Logs Recovered 2 | . . 2 Drone Launches . | . . . Drone Recoveries . | . . . Exploration | -11 -10 -10 ------------- Run | Yrd Mat Min Turns Passed 1209 | 84 214 911 Spaces Moved 942 | 81 193 668 Core 22 | 16 . 6 Treads . | . . . Legs . | . . . Wheels 920 | 65 193 662 Hover . | . . . Flight . | . . . Fastest Speed 50 | 50 80 90 Average Speed 94 | 74 83 100 Slowest Speed 400 | 80 110 400 Overloaded Moves . | . . . Propulsion Burnouts . | . . . Robots Hopped . | . . . Potential Cave-ins . | . . . Cave-ins Triggered . | . . . Exploration Rate (%) 37 | 5 28 78 Regions Visited 2 Branch Regions 1 Pre-discovered Areas 1 | . . 1 Known Exits Taken . | . . . Unknown Exits Taken 2 | 1 1 . Scrap Searched . | . . . Spaces Dug . | . . . Terrain Destroyed 3 | . 2 1 Melee . | . . . Projectile 1 | . . 1 AOE 2 | . 2 . Terrain Rammed . | . . . Walls Destroyed . | . . . Machines Disabled . | . . . Actions | -11 -10 -10 --------- Run | Yrd Mat Min Total 1096 | 94 223 779 Wait 16 | 1 . 15 Move 941 | 81 192 668 Hop . | . . . Pick Up 22 | 2 6 14 Fast Attach 12 | 6 2 4 Attach 8 | . 2 6 Detach 1 | . 1 . Swap 10 | . 3 7 Drop 5 | . 5 . Fire 81 | 4 12 65 Melee . | . . . Ram . | . . . Kick . | . . . Crush . | . . . Escape Stasis . | . . . Rewire . | . . . Trap . | . . . Miscellaneous . | . . . Route ------- -11/Scrapyard -10/Materials -10/Mines (discovered 1 exit: [*Mat]) History --------- Turn | Location | Event 2 | -11/Scrapyard | Met Revision 17 72 | -11/Scrapyard | Discovered new exit (range 8) 85 | -11/Scrapyard | Entered Materials 252 | -10/Materials | Discovered new exit (range 11) 299 | -10/Materials | Entered Mines 302 | -10/Mines | Received a Mining Laser from a helpful Derelict 321 | -10/Mines | Build established: Mutant 329 | -10/Mines | Lost 5 parts (2p1n2w) 387 | -10/Mines | Learned location of 1 exit from Materials 391 | -10/Mines | Discovered new exit (range 4) 633 | -10/Mines | Learned location of Recycling (-8) 652 | -10/Mines | Core integrity fell below 50% 776 | -10/Mines | Build established: Scavenger-Mutant 1076 | -10/Mines | Lost 3 parts (1p1n1w) 1193 | -10/Mines | Core integrity fell below 20% 1210 | -10/Mines | Destroyed by G-47 Trooper with Particle Gun Last Messages --------------- [Achievement: Storm Trooper] 01033_ S-10 Pest destroyed. 01038_ Lgt. Ion Engine destroyed. 01045_ Wheel destroyed. 01046_ S-10 Pest destroyed. 01054_ Destroyed Welding Torch. 01058_ Acquired Lgt. Assault Rifle. 01059_ Acquired 10 matter. 01063_ Acquired Lgt. Ion Engine. 01068_ Acquired 30 matter. 01071_ Acquired Lgt. Assault Rifle. 01096_ Acquired Wheel. 01098_ Acquired Lgt. Ion Engine. 01106_ R-06 Scavenger collects Lgt. Ion Engine. 01195_ Laser Drill disabled. 01199_ G-34 Mercenary destroyed. 01201_ K-01 Serf collects debris. 01206_ Lgt. Assault Rifle destroyed. 01209_ K-01 Serf collects debris. [Achievement: First Step to Greatness] Map ----- +----------------------------------------------------+ | | | | | | | | | ????????????????????????????????????????????????? | | ????????????????????????????????????????????????? | | ????????????????????????????????????????????????? | | ????????????????????????????????????????????????? | | ????????????????????????#####???????????????????? | | #######?????????????????# ?? ????????????????? | | #?????????????????# ""? "?"?????????????? | | ##### #?????????????????# """ """ "???????????? | | #???# #?????????????????# """ """ ????????????? | | ????# #?????????????????# ????????????? | | ????# #?????????????????# """ """ "???????????? | | ##??# #?????????????????# * """ """ "???????????? | | ##?# #?????????????????#[kg""" """ """ #???????? | | ### #?????????????????# = #???????? | | ## ##????????????????# """ """ """ #???????? | | #????????????????# """ """ "???????????? | | #????????????????# "" """ ""??????????? | | ## #????????????????# #???????? | | ##!#????????????????# """ """ ""??????????? | | ###[#????????????????# """ """ "???????????? | | ###?#%#????????????##### """ """ "???????????? | | ##???#=#????????????# @ #???????? | | #????#=#????????????# ### ###### ###??????????? | | ?????# #????????????# #?# #?????? #???????????? | | ?????# ##??????###### #?# #?????????????????????? | | ???### ##?????# #?# #?????????????????????? | | ?### #?????# #####?# #?????????????????????? | | ## % #?????# ##????# #?????????????????????? | | # #????## ###??# #?????????????????????? | | # ##???## ##?# #?????????????????????? | | # ###????# #?# #?????????????????????? | | ##?###### ### #?????????????????????? | | ##??# ## ?????????????????????? | | #???# ##### """" ###?????????????????????? | | ##???# #???## """" ##?????????????????????? | | ####### #????# """" ##????????????????????? | | ##?# #????# ## #### #????????????? | | #??# #####????###%## #????????????? | | #??# #??????????# ### $ $ #????????????? | | #??# #??####????# #?## #####????????????? | | ##?# #### ##???# #??# #????????????????? | | ### ## ##### #??# #???????????????? | | #??# #?????????????? | | ##### # #??## #????????????? | | ????# ## ### #????#### #????????????? | | ????# ## ##?# #????????# #????????????? | +----------------------------------------------------+ Best States ------------- Heat Dissipation 39 Energy Generation 10 Energy Capacity 125 Matter Stores 350 Matter Capacity 350 Sight Range 16 Terrain Scan Density 10 Evasion (%) 50 Item Schematics ----------------- None Robot Schematics ------------------ None Fabricated ------------ Nothing Repaired ---------- Nothing Alien Tech Used ----------------- None Achievements -------------- First Step to Greatness Power Corrupts Storm Trooper Challenges ------------ None Game ------ Seed PowerStealthReplicator Manual? 0 Play Time 00:29:47 Cumulative 0.4 hours Start 2025.05.21 @ 00:06:11 End 2025.05.21 @ 00:36:20 Sessions 1 Manual Loads 0 Difficulty Rogue Special Mode None Game No. 4 Rogue 1 Adventurer 3 Explorer 0 Win Type - Total 0 Types 0/0/0/0/0/0/0/0/0/0 Lore% 0 Gallery% 1 Achievement% 1 Wizard Run 0 Options --------- Layout 1 ASCII 0 Keyboard 0 Movement Numpad Keybinds 0 Fullscreen 2 Font 32/TamsynBold Map View 77x35 Zoom Use 40% Tactical HUD 1 Map Filters NONE Filters NONE Steam 1 RUN: 89d06e88-d274-4090-be2d-441e6183b6ce